Cogmind - Beta 15 @@@ ROGUE MODE // 2025.07.22 @ 10:53:28 Player: shapeshifter Result: Destroyed by S-43 Plague with Heavy Machine Gun Performance ------------- Evolutions (7) 3500 Regions Visited (18) 3600 Robots Destroyed (165) 825 Value Destroyed (5687) 5687 Prototype IDs (10) 200 Alien Tech Used (0) 0 Bonus (2684) 2684 TOTAL SCORE: 16496 Bonus ------- High Alert Combat Kills 569 Follower Combat Kills 315 Entered Garrisons 200 Entered DSFs 1000 Met Zhirov 300 Read Decrypted Archives 300 Cogmind --------- Core Integrity 0/1300 Matter 260/300 Energy 100/100 System Corruption 10% Temperature Cool (0) Movement Core (250) Ox4 Location -3/Research Parts ------- > --- POWER (3) -------- (None) > --- PROPULSION (6) --- (None) > --- UTILITY (8) ------ Advanced Force Field > --- WEAPON (4) ------- (None) > --- INVENTORY (5) ---- Micro Antimatter Reactor Medium Storage Unit Peak State ------------ > --- POWER ------------ Antimatter Reactor Antimatter Reactor Antimatter Reactor > --- PROPULSION ------- Improved Heavy Siege Treads Improved Heavy Siege Treads Centrium Heavy Treads > --- UTILITY ---------- Core Analyzer Improved Transmission Jammer Layered Heavy Armor Plating Layered Heavy Armor Plating > --- WEAPON ----------- (None) > --- INVENTORY -------- Improved Heavy Siege Treads Improved Transmission Jammer Layered Heavy Armor Plating [Rating: 108] Favorites ----------- Power Ion Engine Engine Ion Engine Power Core Light Nuclear Core Reactor Light Antimatter Reactor Propulsion Light Treads Treads Light Treads Leg Aluminum Leg Hover Unit Gravmag Array Flight Unit Xenon Bombardment Thruster Utility Large Storage Unit Device Cooling System Storage Large Storage Unit Processor Core Analyzer Hackware Improved System Shield Protection Improved Medium Armor Plating Weapon Autogun Energy Gun Heavy Laser Energy Cannon Ion Cannon Ballistic Gun Autogun Ballistic Cannon Flak Cannon Launcher Missile Launcher Build | -11 -10 -9 -8 -8 -7 -7 -6 -6 -6 -6 -5 -5 -5 -5 -5 -4 -4 -3 ------- Run | Yrd Mat Mat Mat Sto Fac Gar Fac Was Fac DSF Fac Ext Cet Arc Hub Fac DSF Res Slots Evolved 14 | . . 2 2 . 2 . 2 . . . 2 . . . . 2 . 2 Power 2 | . . . . . . . 1 . . . . . . . . 1 . . Propulsion 4 | . . . 1 . 1 . . . . . 2 . . . . . . . Utility 6 | . . . 1 . 1 . 1 . . . . . . . . 1 . 2 Weapon 2 | . . 2 . . . . . . . . . . . . . . . . Parts Attached 140 | 8 3 18 11 28 3 1 10 1 3 7 5 2 5 . 2 . 17 16 Power 20 | 1 . 1 1 3 . 1 3 . . 2 . . . . . . 3 5 Engine 8 | 1 . 1 1 1 . 1 1 . . 2 . . . . . . . . Core 5 | . . . . 2 . . 2 . . . . . . . . . . 1 Reactor 7 | . . . . . . . . . . . . . . . . . 3 4 Propulsion 50 | 2 . 6 3 11 1 . 3 1 1 4 2 . 2 . 1 . 9 4 Treads 29 | 2 . 3 3 11 1 . 3 1 1 . . . . . 1 . 3 . Leg 8 | . . 2 . . . . . . . . . . . . . . 6 . Wheel . | . . . . . . . . . . . . . . . . . . . Hover 9 | . . . . . . . . . . 4 2 . 1 . . . . 2 Flight 4 | . . 1 . . . . . . . . . . 1 . . . . 2 Utility 29 | 2 1 3 3 4 1 . 3 . 1 . 1 . 3 . 1 . 3 3 Device 10 | 1 . . 1 1 . . 2 . 1 . . . . . 1 . . 3 Storage 7 | 1 1 1 1 . . . . . . . 1 . 2 . . . . . Processor 1 | . . . . . . . 1 . . . . . . . . . . . Hackware 1 | . . . . . . . . . . . . . 1 . . . . . Protection 10 | . . 2 1 3 1 . . . . . . . . . . . 3 . Artifact . | . . . . . . . . . . . . . . . . . . . Weapon 41 | 3 2 8 4 10 1 . 1 . 1 1 2 2 . . . . 2 4 Energy Gun 7 | 1 1 . . 2 . . 1 . . . 1 . . . . . . 1 Energy Cannon 12 | . 1 1 1 2 1 . . . 1 1 1 1 . . . . 2 . Ballistic Gun 17 | 2 . 7 1 5 . . . . . . . . . . . . . 2 Ballistic Cannon 2 | . . . 1 . . . . . . . . . . . . . . 1 Launcher 3 | . . . 1 1 . . . . . . . 1 . . . . . . Special Weapon . | . . . . . . . . . . . . . . . . . . . Impact Weapon . | . . . . . . . . . . . . . . . . . . . Slashing Weapon . | . . . . . . . . . . . . . . . . . . . Piercing Weapon . | . . . . . . . . . . . . . . . . . . . Special Melee Weapon . | . . . . . . . . . . . . . . . . . . . Unidentified Prototypes 10 | . 1 2 1 4 . . . . . . . . . . 1 . . 1 Parts Lost 67 | . . 1 . 16 . 2 1 2 . 10 . 4 5 . . . 9 17 Power 12 | . . . . 1 . 1 . . . 4 . 1 . . . . 2 3 Propulsion 22 | . . . . 4 . . 1 2 . 3 . 2 2 . . . 3 5 Utility 14 | . . 1 . 4 . 1 . . . 1 . . 1 . . . 3 3 Weapon 19 | . . . . 7 . . . . . 2 . 1 2 . . . 1 6 Highest Loss Streak 10 | . . 1 . 10 . 1 1 2 . 5 . 4 4 . . . 8 10 To Critical Strikes 3 | . . . . . . . . . . . . . 2 . . . . 1 Average Backups 9 | 5 7 11 14 12 6 12 12 10 9 9 7 8 3 4 4 5 3 1 Power . | . 1 1 1 1 . . . 2 2 1 . . . . . . . . Propulsion 1 | 3 . 2 2 2 . 2 2 1 1 1 2 2 1 2 1 1 1 . Utility 4 | . 2 4 6 5 5 8 7 5 5 5 5 6 2 2 3 4 2 . Weapon 2 | . 3 3 4 3 1 1 1 1 . . . . . . . . . . Tool/Special . | . . . . . . . . . . . . . . . . . . . Unused Backups 34 | . 10 4 5 4 . . 2 . . . 1 . 3 . . . 3 2 Power 3 | . . . 1 1 . . . . . . . . . . . . 1 . Propulsion 12 | . 8 2 . 1 . . . . . . . . . . . . 1 . Utility 14 | . 1 . 3 2 . . 2 . . . 1 . 3 . . . 1 1 Weapon 4 | . . 2 1 . . . . . . . . . . . . . . 1 Tool/Special 1 | . 1 . . . . . . . . . . . . . . . . . Average Slot Usage (%) 81 | . 99 99 99 94 97 94 99 86 69 57 51 48 31 23 28 26 40 29 Engine 6 | . 14 11 9 7 . 4 6 6 6 5 5 2 . . . . . . Core 1 | . . . . 1 7 2 6 6 6 4 . . . . . . . 2 Treads 19 | . 28 18 27 25 28 30 26 19 9 7 . . . . 4 5 9 2 Hover 1 | . . . . . . . . . . 2 22 17 5 . . . . . Device 8 | . 14 7 8 9 7 7 12 13 13 12 5 5 . . 4 5 5 3 Storage 7 | . 14 11 9 9 6 7 6 6 6 6 5 5 2 . . . . . Processor 1 | . . . . . . . 5 6 6 6 5 5 5 5 5 5 5 3 Protection 5 | . . 2 9 8 14 10 6 3 . . . . . . . . 3 . Energy Gun 2 | . 10 . . 2 . . . 6 6 1 . 5 . . . . . . Energy Cannon 4 | . 6 . . 7 3 7 6 6 6 6 3 3 4 5 5 5 3 5 Ballistic Gun 18 | . 9 43 30 21 26 23 18 9 6 1 . . . . . . . 2 Peak Build Rating 108 | 7 10 16 28 35 37 37 51 54 68 63 57 57 65 29 51 41 108 74 Average Rating 30 | 5 8 14 24 28 35 35 48 51 62 47 50 50 37 29 38 41 74 43 On Entrance 34 | . 7 10 15 28 30 37 35 51 54 62 37 57 45 29 29 41 41 42 Naked Turns 47 | . . . . . . . . . . . . . . . . . . 47 Heaviest Build 89 | 14 22 40 52 56 57 57 69 69 59 59 50 50 29 10 11 11 89 60 Greatest Support 230 | 40 40 40 62 62 80 80 80 90 140 140 58 58 40 13 80 80 230 75 Greatest Overweight (x) 19 | . . 1 . 1 . . . 1 . 1 . 1 . . . . 4 19 Average Overweight (x) . | . . . . . . . . . . . . . . . . . . . Largest Inventory Capacity 15 | 8 10 15 15 15 15 15 15 15 15 15 15 15 15 5 5 5 5 5 Average Capacity 12 | 7 8 12 15 15 14 15 15 15 15 15 15 15 5 5 5 5 5 5 Most Carried 15 | 8 10 15 15 15 11 15 14 14 12 15 10 11 10 5 5 5 5 5 Average Carried 9 | 5 7 11 14 12 6 12 12 10 8 9 9 9 3 5 4 5 4 1 Final Capacity 15 | 8 10 15 15 15 15 15 15 15 15 15 15 15 5 5 5 5 5 5 Final Carried 15 | 7 10 15 15 6 11 15 11 11 8 11 9 11 5 5 5 5 2 2 Class Distribution -------------------- 35% | Mutant 30% | Tank 8% | Scavenger-Gunner 8% | Scavenger-Tank 7% | Gunner 7% | Commander-Tank Dominant Class ---------------- Mutant | -10/Materials Gunner | -9/Materials Tank | -8/Materials Tank | -8/Storage Commander-Tank | -7/Factory Scavenger-Tank | -7/Garrison Scavenger-Gunner | -6/Factory Scavenger-Gunner | -6/Waste Scavenger-Gunner | -6/Factory Mutant | -6/DSF Mutant | -5/Factory Mutant | -5/Extension Mutant | -5/Cetus Mutant | -5/Archives Mutant | -5/Hub_04(d) Mutant | -4/Factory Mutant | -4/DSF Mutant | -3/Research Resources | -11 -10 -9 -8 -8 -7 -7 -6 -6 -6 -6 -5 -5 -5 -5 -5 -4 -4 -3 ----------- Run | Yrd Mat Mat Mat Sto Fac Gar Fac Was Fac DSF Fac Ext Cet Arc Hub Fac DSF Res Matter Collected 5188 | 282 195 777 1053 1531 265 301 146 43 . 90 . . . . . . 27 478 Remotely . | . . . . . . . . . . . . . . . . . . . Salvage Created 7126 | 114 555 825 1075 2804 362 425 128 . . 136 . . . . . . . 702 Parts 383 | 9 29 60 60 142 15 12 13 . . 5 . . 1 . . . . 37 Haulers Intercepted 5 | . . 1 1 3 . . . . . . . . . . . . . . Recyclers Shooed 6 | 1 2 . 2 . . . . . . . . . . . . . . 1 Parts Field Recycled . | . . . . . . . . . . . . . . . . . . . Retrieved Matter . | . . . . . . . . . . . . . . . . . . . Parts Self-Destructed . | . . . . . . . . . . . . . . . . . . . Prevented . | . . . . . . . . . . . . . . . . . . . Kills | -11 -10 -9 -8 -8 -7 -7 -6 -6 -6 -6 -5 -5 -5 -5 -5 -4 -4 -3 ------- Run | Yrd Mat Mat Mat Sto Fac Gar Fac Was Fac DSF Fac Ext Cet Arc Hub Fac DSF Res Combat Hostiles Destroyed 112 | . 8 17 20 44 3 7 2 . . 2 . . . . . . . 9 Guns 68 | . 3 17 12 28 2 3 1 . . 1 . . . . . . . 1 Cannons 35 | . 4 . 3 15 1 4 1 . . 1 . . . . . . . 6 AOE 8 | . 1 . 5 1 . . . . . . . . . . . . . 1 Classes Destroyed 16 | 2 3 4 1 4 . . . . . 1 . . . . . . . 1 Worker 12 | . 2 1 2 5 . . . . . . . . . . . . . 2 Builder 7 | . . 1 1 4 . . . . . . . . . . . . . 1 Tunneler 1 | 1 . . . . . . . . . . . . . . . . . . Hauler 5 | . . 1 1 3 . . . . . . . . . . . . . . Recycler 12 | 1 1 1 2 3 2 . . . . . . . . . . . . 2 Mechanic 1 | . . . . 1 . . . . . . . . . . . . . . Operator 3 | . . . 2 1 . . . . . . . . . . . . . . Watcher 12 | . 3 2 3 2 1 . . . . . . . 1 . . . . . Swarmer 18 | . . 4 5 4 . . . . . . . . . . . . . 5 Grunt 63 | . 8 11 13 25 2 3 . . . 1 . . . . . . . . Duelist 2 | . . . . 2 . . . . . . . . . . . . . . Protector 1 | . . . . 1 . . . . . . . . . . . . . . Sentry 21 | . . 2 2 11 1 4 . . . . . . . . . . . 1 Specialist 1 | . . . . . . . . . . 1 . . . . . . . . Hunter 3 | . . . . 1 . . 2 . . . . . . . . . . . Programmer 3 | . . . . . . . . . . . . . . . . . . 3 Best Kill Streak 12 | 2 5 4 9 12 2 7 2 . . 1 . . 1 . . . . 6 Combat Bots Only 7 | . 3 4 7 7 2 7 2 . . 1 . . . . . . . 5 Max Kills in Single Turn 3 | 1 2 2 3 3 1 1 1 . . 1 . . 1 . . . . 2 Gunslinging 1 | . . 1 . . . . . . . . . . . . . . . . Exploded 2 | . 1 . 2 1 . . . . . . . . . . . . . 1 Melee . | . . . . . . . . . . . . . . . . . . . Uniques/NPCs Destroyed . | . . . . . . . . . . . . . . . . . . . Combat | -11 -10 -9 -8 -8 -7 -7 -6 -6 -6 -6 -5 -5 -5 -5 -5 -4 -4 -3 -------- Run | Yrd Mat Mat Mat Sto Fac Gar Fac Was Fac DSF Fac Ext Cet Arc Hub Fac DSF Res Hostile Shots Fired 1579 | . 50 48 63 310 45 131 18 2 . 101 . 57 65 . 1 . 529 159 Missed 494 | . 13 15 18 82 22 41 2 . . 23 . 26 32 . . . 173 47 Hits 1085 | . 37 33 45 228 23 90 16 2 . 78 . 31 33 . 1 . 356 112 Melee 2 | . . . . . . . . 2 . . . . . . . . . . Projectile 1083 | . 37 33 45 228 23 90 16 . . 78 . 31 33 . 1 . 356 112 Critical Strikes 46 | . 1 . 1 13 . . . 1 . 4 . 1 8 . . . 3 14 Part Disruptions 22 | . . . . 1 . . . . . 5 . . . . . . 14 2 Damage Taken 18285 | . 457 367 674 3862 188 731 271 100 . 1771 . 727 854 . 20 . 5427 2836 Core 3142 | . 39 15 32 439 5 54 17 . . 267 . 151 359 . 20 . 442 1302 Absorbed by Shields 12 | . . . . 12 . . . . . . . . . . . . . . Regen/Repaired (Parts) 683 | . . . . 85 598 . . . . . . . . . . . . . Core Remaining (%) 69 | 100 84 96 . 14 . 91 . . . 66 . . . . 47 . 61 . Volleys Fired 388 | 3 31 40 40 139 12 19 7 . . 14 1 . 30 . 1 . 1 50 Largest 4 | 2 2 4 4 4 4 4 4 . . 3 2 . 2 . 1 . 1 3 Hottest 244 | 40 105 92 131 244 140 140 140 . . 165 162 . 171 . 90 . 94 188 Shots Fired 1089 | 6 60 160 158 417 48 76 28 . . 25 2 . 31 . 1 . 1 76 Gun 796 | 6 41 160 130 303 39 57 21 . . 6 1 . 1 . . . . 31 Cannon 261 | . 19 . 18 94 9 19 7 . . 19 1 . 28 . 1 . 1 45 Launcher 32 | . . . 10 20 . . . . . . . . 2 . . . . . Special . | . . . . . . . . . . . . . . . . . . . Kinetic 759 | 6 15 160 143 269 39 57 21 . . 3 . . . . . . . 46 Thermal 240 | . 19 . 5 128 9 19 7 . . 22 1 . 29 . 1 . . . Explosive 12 | . . . 10 . . . . . . . . . 2 . . . . . Electromagnetic 78 | . 26 . . 20 . . . . . . 1 . . . . . 1 30 Robot Hit Streak 11 | 2 11 10 11 10 6 8 6 . . 4 . . 11 . . . 1 11 Robot Miss Streak 9 | 1 5 7 5 9 2 2 3 . . 2 . . 1 . 2 . . 5 Penetration Max . | . . . . . . . . . . . . . . . . . . . Secondary Targets 8 | . . 5 . 3 . . . . . . . . . . . . . . Max Gunslinging Chain 2 | . . 2 . 1 . . . . . . . . . . . . . . Shots Hit Robots 544 | 3 36 73 73 209 23 40 14 . . 16 . . 8 . . . 1 48 Core Hits 302 | 2 25 32 64 111 12 16 6 . . 5 . . 7 . . . . 22 Critical Kills 3 | . . . 1 2 . . . . . . . . . . . . . . Critical Parts Destroyed 7 | . . 1 2 . 1 1 . . . . . . . . . . . 2 Critical Strikes 12 | . . 1 3 3 1 1 . . . . . . . . . . . 3 Burn 1 | . . . . 1 . . . . . . . . . . . . . . Destroy 10 | . . 1 3 2 1 1 . . . . . . . . . . . 2 Blast 1 | . . . . . . . . . . . . . . . . . . 1 Melee Attacks . | . . . . . . . . . . . . . . . . . . . Impact . | . . . . . . . . . . . . . . . . . . . Slashing . | . . . . . . . . . . . . . . . . . . . Piercing . | . . . . . . . . . . . . . . . . . . . Sneak Attacks . | . . . . . . . . . . . . . . . . . . . Combat Hostiles . | . . . . . . . . . . . . . . . . . . . Follow-up Attacks . | . . . . . . . . . . . . . . . . . . . Damage Inflicted 12918 | 38 645 1160 1724 4746 465 881 280 . . 421 . . 546 . . . 39 1973 Guns 6946 | 38 411 1160 1005 2836 328 475 145 . . 39 . . 24 . . . . 485 Cannons 4291 | . 192 . 219 1329 137 406 135 . . 382 . . 171 . . . 33 1287 Explosions 1668 | . 42 . 495 579 . . . . . . . . 351 . . . . 201 Melee . | . . . . . . . . . . . . . . . . . . . Ramming 13 | . . . 5 2 . . . . . . . . . . . . 6 . Kinetic 6899 | 38 114 1160 1176 2424 328 475 145 . . 18 . . . . . . . 1021 Thermal 3337 | . 234 . 48 1779 137 406 135 . . 403 . . 195 . . . . . Explosive 1047 | . . . 495 . . . . . . . . . 351 . . . . 201 Electromagnetic 1622 | . 297 . . 541 . . . . . . . . . . . . 33 751 Impact . | . . . . . . . . . . . . . . . . . . . Slashing . | . . . . . . . . . . . . . . . . . . . Piercing . | . . . . . . . . . . . . . . . . . . . Highest Corruption 13 | . . 1 3 3 1 1 . . . 3 . . 1 1 1 . 13 10 Average Corruption 2 | . . 1 2 3 1 1 . . . 2 . . 1 1 1 . 6 8 Corruption Purged . | . . . . . . . . . . . . . . . . . . . Corruption Blocked . | . . . . . . . . . . . . . . . . . . . Effects 73 | . . 3 15 29 1 7 . . . 1 . . . . 4 . 9 4 Message Errors 10 | . . 1 3 3 . . . . . . . . . . . . 2 1 Matter Fused 18 | . . 1 4 8 . 2 . . . . . . . . 1 . 1 1 Heat Flow Errors 10 | . . 1 1 4 . 3 . . . . . . . . 1 . . . Energy Discharges 10 | . . . 1 5 . 1 . . . . . . . . 1 . 2 . Parts Rejected 4 | . . . 1 2 . . . . . . . . . . . . 1 . Parts Fused 1 | . . . . 1 . . . . . . . . . . . . . . Data Loss (minor) 10 | . . . 1 1 1 1 . . . 1 . . . . 1 . 2 2 Data Loss (major) 5 | . . . 3 2 . . . . . . . . . . . . . . Misfires 1 | . . . . 1 . . . . . . . . . . . . . . Alerts 1 | . . . 1 . . . . . . . . . . . . . . . Misdirections 1 | . . . . . . . . . . . . . . . . . 1 . Weapon Failures 2 | . . . . 2 . . . . . . . . . . . . . . Overload Shots . | . . . . . . . . . . . . . . . . . . . Overflow Damage 193 | . . . 18 . . . . . . . . . 55 . . . . 120 Projectiles 120 | . . . . . . . . . . . . . . . . . . 120 Explosions 73 | . . . 18 . . . . . . . . . 55 . . . . . Melee . | . . . . . . . . . . . . . . . . . . . Knockbacks 7 | . . . 2 . . . . . . . . . . . . . . 5 Impact . | . . . . . . . . . . . . . . . . . . . Kinetic 7 | . . . 2 . . . . . . . . . . . . . . 5 Secondary . | . . . . . . . . . . . . . . . . . . . Self-Inflicted Damage 279 | . . . 43 127 . . . . . . . . . . . . . 109 Shots 10 | . . . 2 7 . . . . . . . . . . . . . 1 Rammed 4 | . . . 1 1 . . . . . . . . . . . . 2 . Targets Rammed 4 | . . . 1 1 . . . . . . . . . . . . 2 . Kicked . | . . . . . . . . . . . . . . . . . . . Crushed . | . . . . . . . . . . . . . . . . . . . Highest Temperature 842 | . 288 240 199 842 144 485 243 . . 88 110 . 114 . 262 . 52 365 Average Temperature 106 | . 103 76 25 135 54 193 127 . . 44 60 . 19 . 118 . 17 133 Received Heat Transfer 4614 | . 267 114 297 2097 66 225 . . . 243 . 192 135 . 9 . 810 159 Effects 35 | . . 2 . 21 . 8 . . . . . . . . . . . 4 Shutdowns 2 | . . . . 2 . . . . . . . . . . . . . . Energy Bleed 5 | . . . . 3 . 1 . . . . . . . . . . . 1 Interference 10 | . . 2 . 5 . . . . . . . . . . . . . 3 Matter Decay 1 | . . . . 1 . . . . . . . . . . . . . . Short Circuit 1 | . . . . 1 . . . . . . . . . . . . . . Damage (minor) 4 | . . . . 3 . 1 . . . . . . . . . . . . Damage (major) 10 | . . . . 4 . 6 . . . . . . . . . . . . Damage (core) 2 | . . . . 2 . . . . . . . . . . . . . . Siege Activations . | . . . . . . . . . . . . . . . . . . . Martial Activations . | . . . . . . . . . . . . . . . . . . . Shielding Activations 1 | . . . . . . . . . . . . . . . . . 1 . Total Turns 2 | . . . . . . . . . . . . . . . . . 2 . Longest Duration 2 | . . . . . . . . . . . . . . . . . 2 . Robots Disrupted . | . . . . . . . . . . . . . . . . . . . Combat Hostiles . | . . . . . . . . . . . . . . . . . . . Robots Corrupted 1 | . . . . . . . . . . . . . . . . . . 1 Combat Hostiles 1 | . . . . . . . . . . . . . . . . . . 1 Parts Fried 7 | . . . . 3 . . . . . . . . . . . . . 4 Impact Corruptions . | . . . . . . . . . . . . . . . . . . . Robots Melted . | . . . . . . . . . . . . . . . . . . . Combat Hostiles . | . . . . . . . . . . . . . . . . . . . Parts Melted 1 | . . . . . . 1 . . . . . . . . . . . . Heat Transferred 5340 | . 457 . 74 3057 185 555 185 . . 605 . . 222 . . . . . Parts Sabotaged . | . . . . . . . . . . . . . . . . . . . Parts Stolen . | . . . . . . . . . . . . . . . . . . . Parts Stripped . | . . . . . . . . . . . . . . . . . . . Power Chain Reactions 5 | . 2 . . 3 . . . . . . . . . . . . . . Alert | -11 -10 -9 -8 -8 -7 -7 -6 -6 -6 -6 -5 -5 -5 -5 -5 -4 -4 -3 ------- Run | Yrd Mat Mat Mat Sto Fac Gar Fac Was Fac DSF Fac Ext Cet Arc Hub Fac DSF Res Maximum Alert Level 3 | . . . 1 3 2 2 1 . . . . . . . . . . . Low Security (%) 64 | 100 100 100 69 9 . . 50 100 100 100 100 100 100 100 100 100 100 100 Level 1 15 | . . . 30 24 62 3 49 . . . . . . . . . . . Level 2 14 | . . . . 39 37 96 . . . . . . . . . . . . Level 3 5 | . . . . 26 . . . . . . . . . . . . . . Level 4 . | . . . . . . . . . . . . . . . . . . . Level 5 . | . . . . . . . . . . . . . . . . . . . High Security . | . . . . . . . . . . . . . . . . . . . Max Security . | . . . . . . . . . . . . . . . . . . . Peak Influence 954 | 5 138 125 373 954 633 563 295 48 . 23 150 100 99 . 30 . 15 80 Initial 431 | . . 37 7 152 429 431 295 48 . 3 . 70 50 . . . . 2 Average 187 | . 40 39 104 507 413 508 209 17 . 6 24 46 43 . 3 . 3 25 Influence Increases 4711 | 10 295 466 668 1570 434 332 52 . 5 40 167 120 102 . 36 . 30 384 Destroy 0b10 Robot/C 2400 | . 160 340 400 860 160 220 40 . . 40 . . . . . . . 180 Destroy 0b10 Robot/NC 285 | 10 30 30 55 100 30 . . . . . . . 5 . . . . 25 Destroy Leader 494 | . 46 66 78 210 44 10 10 . . . . . . . . . . 30 Allied During Kill 214 | . . . . . 162 52 . . . . . . . . . . . . Successful Hack 164 | . 5 27 19 29 35 . . . 5 . 17 . 23 . 4 . . . Disable Machine 210 | . 30 . 30 120 . . . . . . . . 15 . . . . 15 Anti-Garrison Action 200 | . . . . . . 50 . . . . 150 . . . . . . . Destroy Structure 219 | . 9 3 86 26 3 . 2 . . . . . 44 . 2 . . 44 Partial Spotted 15 | . . . . . . . . . . . . . . . . . . 15 Lose Combat Pursuer 510 | . 15 . . 225 . . . . . . . 120 15 . 30 . 30 75 Influence Decreases 4641 | 10 207 535 326 986 762 386 476 139 . 45 24 173 192 . 36 . 25 319 Entered New Map 1451 | . . 51 12 209 516 186 268 91 . 2 . 73 40 . . . . 3 Time Decay 2379 | 10 207 361 314 577 246 . 198 30 . . 24 80 102 . 36 . . 194 Lost Part 478 | . . 10 . 160 . 20 10 18 . 43 . 20 50 . . . 25 122 Lost Ally 220 | . . . . 40 . 180 . . . . . . . . . . . . Purge Threat 113 | . . 113 . . . . . . . . . . . . . . . . Squads Dispatched 31 | . 1 3 2 8 6 . 1 . . 2 2 . 1 . . . 2 3 Investigation 12 | . 1 2 2 2 2 . . . . . . . 1 . . . . 2 Extermination 3 | . . . . . 1 . 1 . . . . . . . . . . 1 Reinforcement 9 | . . 1 . 3 1 . . . . 2 . . . . . . 2 . Assault 5 | . . . . 3 . . . . . . 2 . . . . . . . Garrison 2 | . . . . . 2 . . . . . . . . . . . . . Intercept . | . . . . . . . . . . . . . . . . . . . Searches Triggered . | . . . . . . . . . . . . . . . . . . . Construction Impeded 2 | . . . . 1 1 . . . . . . . . . . . . . Haulers Reinforced . | . . . . . . . . . . . . . . . . . . . Active Scanning Responses . | . . . . . . . . . . . . . . . . . . . Cargo Convoy Interrupts . | . . . . . . . . . . . . . . . . . . . Stealth | -11 -10 -9 -8 -8 -7 -7 -6 -6 -6 -6 -5 -5 -5 -5 -5 -4 -4 -3 --------- Run | Yrd Mat Mat Mat Sto Fac Gar Fac Was Fac DSF Fac Ext Cet Arc Hub Fac DSF Res Distress Signals 10 | . 2 . 2 4 1 . . . . . . . 1 . . . . . Communications Jammed 6 | . . . . . . . . . . . . . . . . . . 6 Distress Signals 6 | . . . . . . . . . . . . . . . . . . 6 Times Spotted 228 | . 14 23 27 66 11 11 2 1 . 15 . 10 5 . 4 . 16 23 Peak Tracking Total 13 | . 5 4 6 10 3 8 2 1 . 5 . 8 5 . 2 . 13 10 Tactical Retreats 22 | . 1 . . 7 . . . . . 5 . 3 1 . 1 . 2 2 Traps | -11 -10 -9 -8 -8 -7 -7 -6 -6 -6 -6 -5 -5 -5 -5 -5 -4 -4 -3 ------- Run | Yrd Mat Mat Mat Sto Fac Gar Fac Was Fac DSF Fac Ext Cet Arc Hub Fac DSF Res Traps Triggered 12 | . 2 1 2 3 . . 1 . . . . . . . . . 2 1 Indirectly . | . . . . . . . . . . . . . . . . . . . Trap Hack Attempts . | . . . . . . . . . . . . . . . . . . . Triggered . | . . . . . . . . . . . . . . . . . . . Disarmed . | . . . . . . . . . . . . . . . . . . . Reprogrammed . | . . . . . . . . . . . . . . . . . . . Reused . | . . . . . . . . . . . . . . . . . . . Traps Extracted . | . . . . . . . . . . . . . . . . . . . Installed . | . . . . . . . . . . . . . . . . . . . Triggered . | . . . . . . . . . . . . . . . . . . . Machines | -11 -10 -9 -8 -8 -7 -7 -6 -6 -6 -6 -5 -5 -5 -5 -5 -4 -4 -3 ---------- Run | Yrd Mat Mat Mat Sto Fac Gar Fac Was Fac DSF Fac Ext Cet Arc Hub Fac DSF Res Machines Disabled 16 | . 2 . 2 8 . 1 . . . . 1 . 1 . . . . 1 Max in Single Turn 2 | . 1 . 1 2 . 1 . . . . 1 . 1 . . . . 1 Garrison Access 1 | . . . . . . . . . . . 1 . . . . . . . Garrison Relay 1 | . . . . . . 1 . . . . . . . . . . . . Machines Repaired . | . . . . . . . . . . . . . . . . . . . Machines Dismantled . | . . . . . . . . . . . . . . . . . . . Machines Sabotaged . | . . . . . . . . . . . . . . . . . . . Overloaded Fab Kills . | . . . . . . . . . . . . . . . . . . . Hacking | -11 -10 -9 -8 -8 -7 -7 -6 -6 -6 -6 -5 -5 -5 -5 -5 -4 -4 -3 --------- Run | Yrd Mat Mat Mat Sto Fac Gar Fac Was Fac DSF Fac Ext Cet Arc Hub Fac DSF Res Machines Accessed 46 | . 5 8 8 6 3 1 . . 1 . 4 . 3 1 3 1 . 2 Terminals 37 | . 4 7 6 5 1 1 . . 1 . 4 . 3 . 3 1 . 1 Fabricators . | . . . . . . . . . . . . . . . . . . . Repair Stations 3 | . . . . 1 1 . . . . . . . . . . . . 1 Recycling Units 2 | . 1 . 1 . . . . . . . . . . . . . . . Scanalyzers 2 | . . 1 1 . . . . . . . . . . . . . . . Garrison Access 1 | . . . . . 1 . . . . . . . . . . . . . Total Hacks 162 | . 17 28 32 14 12 2 . . 2 . 6 . 11 25 6 3 . 4 Successful 106 | . 10 18 23 8 8 . . . 1 . 3 . 5 25 4 1 . . Failed 56 | . 7 10 9 6 4 2 . . 1 . 3 . 6 . 2 2 . 4 Catastrophic 10 | . 1 . 2 1 2 . . . . . . . 1 . 1 . . 2 Database Lockouts . | . . . . . . . . . . . . . . . . . . . Manual 49 | . 10 13 9 6 3 2 . . . . 3 . . . 2 . . 1 Terminals 103 | . 14 23 19 12 3 2 . . 2 . 6 . 11 . 6 3 . 2 Fabricators . | . . . . . . . . . . . . . . . . . . . Repair Stations 11 | . . . . 2 7 . . . . . . . . . . . . 2 Recycling Units 6 | . 3 . 3 . . . . . . . . . . . . . . . Scanalyzers 15 | . . 5 10 . . . . . . . . . . . . . . . Garrison Access 2 | . . . . . 2 . . . . . . . . . . . . . Terminal Hacks 57 | . 4 7 6 3 . . . . 1 . 2 . 5 25 3 1 . . Record 30 | . . . . . . . . . . . . . 4 25 1 . . . Open Door 3 | . . . . 1 . . . . . . 1 . 1 . . . . . Open DSF 3 | . . . . . . . . . 1 . 1 . . . . 1 . . Level Access Points 1 | . . 1 . . . . . . . . . . . . . . . . Branch Access Points 4 | . 1 . 1 1 . . . . . . . . . . 1 . . . Emergency Access Points 1 | . . . . . . . . . . . . . . . 1 . . . Alert Level 7 | . 2 1 3 1 . . . . . . . . . . . . . . Unreport Threat 1 | . . 1 . . . . . . . . . . . . . . . . Locate Traps 1 | . 1 . . . . . . . . . . . . . . . . . Dispatch Records 1 | . . 1 . . . . . . . . . . . . . . . . Maintenance Status 1 | . . . 1 . . . . . . . . . . . . . . . Transport Status 1 | . . 1 . . . . . . . . . . . . . . . . Recall Reinforcements 1 | . . 1 . . . . . . . . . . . . . . . . Registered Components 1 | . . . 1 . . . . . . . . . . . . . . . Zone Layout 1 | . . 1 . . . . . . . . . . . . . . . . Fabricator Hacks . | . . . . . . . . . . . . . . . . . . . Repair Station Hacks 8 | . . . . 2 6 . . . . . . . . . . . . . Scan Component 4 | . . . . 1 3 . . . . . . . . . . . . . Repair 4 | . . . . 1 3 . . . . . . . . . . . . . Recycling Unit Hacks 3 | . 2 . 1 . . . . . . . . . . . . . . . Report Inventory 2 | . 1 . 1 . . . . . . . . . . . . . . . Retrieve Components 1 | . 1 . . . . . . . . . . . . . . . . . Scanalyzer 15 | . . 5 10 . . . . . . . . . . . . . . . Insert Component 8 | . . 3 5 . . . . . . . . . . . . . . . Analyze 7 | . . 2 5 . . . . . . . . . . . . . . . Garrison Access Hacks 1 | . . . . . 1 . . . . . . . . . . . . . Unlock Access 1 | . . . . . 1 . . . . . . . . . . . . . Unauthorized Hacks 22 | . 4 6 6 3 1 . . . . . 1 . . . 1 . . . Terminals 22 | . 4 6 6 3 1 . . . . . 1 . . . 1 . . . Botnet 22 | . 4 6 6 3 1 . . . . . 1 . . . 1 . . . Fabricators . | . . . . . . . . . . . . . . . . . . . Repair Stations . | . . . . . . . . . . . . . . . . . . . Recycling Units . | . . . . . . . . . . . . . . . . . . . Scanalyzers . | . . . . . . . . . . . . . . . . . . . Garrison Access . | . . . . . . . . . . . . . . . . . . . Data Cores Recovered 2 | . . . 2 . . . . . . . . . . . . . . . Used 1 | . . . 1 . . . . . . . . . . . . . . . Hacking Detections 31 | . 5 8 5 3 2 1 . . . . 2 . 2 . 1 . . 2 Full Trace Events 19 | . 3 6 3 2 2 . . . . . . . 1 . . . . 2 Feedback Events 3 | . . 1 . . 1 . . . . . . . 1 . . . . . Corruption 3 | . . 1 . . 1 . . . . . . . 1 . . . . . Feedback Blocked . | . . . . . . . . . . . . . . . . . . . Robot Schematics Acquired . | . . . . . . . . . . . . . . . . . . . Robots Built . | . . . . . . . . . . . . . . . . . . . Authchips . | . . . . . . . . . . . . . . . . . . . Time . | . . . . . . . . . . . . . . . . . . . Total Robot Build Rating . | . . . . . . . . . . . . . . . . . . . Part Schematics Acquired 5 | . . 2 3 . . . . . . . . . . . . . . . Parts Built . | . . . . . . . . . . . . . . . . . . . Authchips . | . . . . . . . . . . . . . . . . . . . Time . | . . . . . . . . . . . . . . . . . . . Total Part Build Rating . | . . . . . . . . . . . . . . . . . . . Parts Repaired 4 | . . . . 1 3 . . . . . . . . . . . . . Time 110 | . . . . 32 78 . . . . . . . . . . . . . Parts Recycled . | . . . . . . . . . . . . . . . . . . . Recycled Matter . | . . . . . . . . . . . . . . . . . . . Retrieved Matter . | . . . . . . . . . . . . . . . . . . . Retrieved Components 2 | . 2 . . . . . . . . . . . . . . . . . Parts Scanalyzed 5 | . . 2 3 . . . . . . . . . . . . . . . Part Schematics Acquired 5 | . . 2 3 . . . . . . . . . . . . . . . Parts Damaged . | . . . . . . . . . . . . . . . . . . . Bothacking | -11 -10 -9 -8 -8 -7 -7 -6 -6 -6 -6 -5 -5 -5 -5 -5 -4 -4 -3 ------------ Run | Yrd Mat Mat Mat Sto Fac Gar Fac Was Fac DSF Fac Ext Cet Arc Hub Fac DSF Res Used RIF Installer . | . . . . . . . . . . . . . . . . . . . Robots Hacked . | . . . . . . . . . . . . . . . . . . . Non-combat . | . . . . . . . . . . . . . . . . . . . Combat . | . . . . . . . . . . . . . . . . . . . Robot Hacks Applied . | . . . . . . . . . . . . . . . . . . . Relay Couplers Released 4 | . . . . . . 4 . . . . . . . . . . . . Machine Destruction 4 | . . . . . . 4 . . . . . . . . . . . . Fabnet Peak Effective % . | . . . . . . . . . . . . . . . . . . . Robots Rewired . | . . . . . . . . . . . . . . . . . . . Allies Hacked 1 | . . . . . 1 . . . . . . . . . . . . . Hacks Repelled . | . . . . . . . . . . . . . . . . . . . Allies | -11 -10 -9 -8 -8 -7 -7 -6 -6 -6 -6 -5 -5 -5 -5 -5 -4 -4 -3 -------- Run | Yrd Mat Mat Mat Sto Fac Gar Fac Was Fac DSF Fac Ext Cet Arc Hub Fac DSF Res Total Allies 12 | . . . . 12 . . . . . . . . . . . . . . Largest Group 10 | . . . . 10 10 9 . . . . . . . . . . . . Highest-Rated Group 173 | . . . . 173 173 157 . . . . . . . . . . . . Highest-Rated Ally 31 | . . . . 31 29 29 . . . . . . . . . . . . Total Orders . | . . . . . . . . . . . . . . . . . . . Ally Attacks 118 | . . . . 9 68 41 . . . . . . . . . . . . Total Damage 1316 | . . . . 169 754 393 . . . . . . . . . . . . Kills 13 | . . . . . 9 4 . . . . . . . . . . . . Allies Corrupted . | . . . . . . . . . . . . . . . . . . . Allies Melted . | . . . . . . . . . . . . . . . . . . . Intel | -11 -10 -9 -8 -8 -7 -7 -6 -6 -6 -6 -5 -5 -5 -5 -5 -4 -4 -3 ------- Run | Yrd Mat Mat Mat Sto Fac Gar Fac Was Fac DSF Fac Ext Cet Arc Hub Fac DSF Res Active Infowar (turns) 3220 | 6 936 779 . . . . 404 126 13 231 . . . . 22 . 117 586 Seismic 1721 | 6 936 779 . . . . . . . . . . . . . . . . Jamming 725 | . . . . . . . . . . . . . . . 22 . 117 586 ECM 774 | . . . . . . . 404 126 13 231 . . . . . . . . Robot Analysis Total . | . . . . . . . . . . . . . . . . . . . Derelict Logs Recovered . | . . . . . . . . . . . . . . . . . . . Drone Launches . | . . . . . . . . . . . . . . . . . . . Drone Recoveries . | . . . . . . . . . . . . . . . . . . . Exploration | -11 -10 -9 -8 -8 -7 -7 -6 -6 -6 -6 -5 -5 -5 -5 -5 -4 -4 -3 ------------- Run | Yrd Mat Mat Mat Sto Fac Gar Fac Was Fac DSF Fac Ext Cet Arc Hub Fac DSF Res Turns Passed 8755 | 125 936 1085 1182 1770 537 367 405 126 13 265 167 206 232 32 243 4 296 764 Spaces Moved 5073 | 69 511 554 648 723 223 188 151 74 6 152 320 324 307 79 198 3 138 405 Core 128 | 13 . . . . . . . . . . . . . . . . 7 108 Treads 3578 | 56 511 475 648 723 223 188 151 74 6 98 . . . . 104 3 104 214 Legs 106 | . . 79 . . . . . . . . . . . . . . 27 . Wheels . | . . . . . . . . . . . . . . . . . . . Hover 788 | . . . . . . . . . . 54 320 324 14 . . . . 76 Flight 473 | . . . . . . . . . . . . . 293 79 94 . . 7 Fastest Speed 40 | 50 160 160 155 155 160 160 160 160 160 56 48 48 40 40 40 160 120 50 Average Speed 134 | 139 160 164 158 168 160 160 160 162 160 135 48 54 40 40 103 160 168 149 Slowest Speed 1000 | 160 160 190 160 245 160 160 160 240 160 160 48 106 56 40 160 160 250 1000 Overloaded Moves . | . . . . . . . . . . . . . . . . . . . Propulsion Burnouts . | . . . . . . . . . . . . . . . . . . . Robots Hopped . | . . . . . . . . . . . . . . . . . . . Potential Cave-ins . | . . . . . . . . . . . . . . . . . . . Cave-ins Triggered . | . . . . . . . . . . . . . . . . . . . Exploration Rate (%) 45 | 6 68 41 46 85 7 29 3 68 . 88 6 43 79 76 22 . 93 12 Regions Visited 18 Branch Regions 5 Pre-discovered Areas . | . . . . . . . . . . . . . . . . . . . Known Exits Taken 5 | . . 1 1 . 1 . . . 1 . . . . . . 1 . . Unknown Exits Taken 8 | 1 1 . . 1 . . . . . . 1 1 1 1 1 . . . Scrap Searched . | . . . . . . . . . . . . . . . . . . . Spaces Dug . | . . . . . . . . . . . . . . . . . . . Terrain Destroyed 181 | . 8 . 78 23 1 . 2 . . . . . 48 . . . . 21 Melee . | . . . . . . . . . . . . . . . . . . . Projectile 19 | . . . . 9 1 . 2 . . . . . . . . . . 7 AOE 162 | . 8 . 78 14 . . . . . . . . 48 . . . . 14 Terrain Rammed . | . . . . . . . . . . . . . . . . . . . Walls Destroyed . | . . . . . . . . . . . . . . . . . . . Machines Disabled . | . . . . . . . . . . . . . . . . . . . Actions | -11 -10 -9 -8 -8 -7 -7 -6 -6 -6 -6 -5 -5 -5 -5 -5 -4 -4 -3 --------- Run | Yrd Mat Mat Mat Sto Fac Gar Fac Was Fac DSF Fac Ext Cet Arc Hub Fac DSF Res Total 6402 | 91 576 665 732 1040 387 229 306 82 11 191 331 355 386 78 237 2 200 503 Wait 517 | . . 6 6 103 132 16 130 . . . . 27 34 . 33 . 20 10 Move 5057 | 68 510 553 647 722 223 187 151 73 5 151 319 323 306 78 197 2 137 405 Hop . | . . . . . . . . . . . . . . . . . . . Pick Up 156 | 12 17 23 13 19 13 5 4 4 . 13 4 2 1 . 2 . 8 16 Fast Attach 20 | 2 . . . 2 1 1 . . . . . . . . 1 . 13 . Attach 92 | 5 1 7 4 17 5 1 5 1 3 8 4 2 7 . 1 . 5 16 Detach 9 | . . . . . . . . . 1 . . 1 4 . 1 . . 2 Swap 54 | 1 4 16 8 18 . . 5 . . . 1 . . . . . . 1 Drop 104 | . 13 20 13 18 1 . 4 4 2 5 2 . 4 . 1 . 14 3 Fire 388 | 3 31 40 40 139 12 19 7 . . 14 1 . 30 . 1 . 1 50 Melee . | . . . . . . . . . . . . . . . . . . . Ram . | . . . . . . . . . . . . . . . . . . . Kick . | . . . . . . . . . . . . . . . . . . . Crush 4 | . . . 1 1 . . . . . . . . . . . . 2 . Escape Stasis 1 | . . . . 1 . . . . . . . . . . . . . . Rewire . | . . . . . . . . . . . . . . . . . . . Trap . | . . . . . . . . . . . . . . . . . . . Miscellaneous . | . . . . . . . . . . . . . . . . . . . Route ------- -11/Scrapyard -10/Materials (discovered 4 exits: *Mat / *Min x2 / [*Sub]) -9/Materials (discovered 4 exits: *Mat x3 / [*Min]) -8/Materials -8/Storage (discovered 2 exits: *Fac / Rec) -7/Factory -7/Garrison -6/Factory -6/Waste -6/Factory -6/DSF -5/Factory -5/Extension (discovered 2 exits: *Fac / *Cet) -5/Cetus -5/Archives -5/Hub_04(d) (discovered 2 exits: *Fac x2) -4/Factory -4/DSF -3/Research History --------- Turn | Location | Event 11 | -11/Scrapyard | Discovered new exit (range 16) 126 | -11/Scrapyard | Entered Materials 317 | -10/Materials | Build established: Mutant 368 | -10/Materials | Discovered new exit (range 15) 445 | -10/Materials | Identified exit to Mines 746 | -10/Materials | Discovered new exit (range 9) 826 | -10/Materials | Derelicts attacked the area 1062 | -10/Materials | Entered another Materials area 1062 | -9/Materials | Evolved 2 slots: Weapon x2 1378 | -9/Materials | Identified exit to Materials 1601 | -9/Materials | Build established: Gunner 1945 | -9/Materials | Discovered new exit (range 12) 2145 | -9/Materials | Build established: Tank 2147 | -9/Materials | Entered another Materials area 2147 | -8/Materials | Evolved 2 slots: Propulsion x1, Utility x1 2211 | -8/Materials | Identified exit to Storage 2999 | -8/Materials | Destroyed 7 combat bots 3329 | -8/Materials | Entered Storage 3530 | -8/Storage | Destroyed 7 combat bots 3756 | -8/Storage | Repaired Autogun 3927 | -8/Storage | Identified exit to Recycling 4527 | -8/Storage | Met a pair of Derelict thieves 4529 | -8/Storage | First assault squad dispatched 4656 | -8/Storage | Core integrity fell below 50% 4677 | -8/Storage | Destroyed 7 combat bots 4758 | -8/Storage | Lost 10 parts (2n3u5w) 4895 | -8/Storage | Core integrity fell below 20% 5047 | -8/Storage | Discovered new exit (range 7) 5065 | -8/Storage | Assisted by bots powering up and referring to "LRC-V3" 5099 | -8/Storage | Entered Factory 5099 | -7/Factory | Accompanied by 10 allies 5099 | -7/Factory | Evolved 2 slots: Propulsion x1, Utility x1 5305 | -7/Factory | Repaired Lgt. Treads 5333 | -7/Factory | Repaired Lgt. Treads 5360 | -7/Factory | Repaired Lrg. Storage Unit 5401 | -7/Factory | Build established: Commander-Tank 5536 | -7/Factory | Garrison activated, responded to threat 5582 | -7/Factory | Identified exit to Garrison 5636 | -7/Factory | Entered Garrison 5636 | -7/Garrison | Accompanied by 9 allies 5712 | -7/Garrison | Triggered checkpoint 5716 | -7/Garrison | Triggered checkpoint 5794 | -7/Garrison | Lost 9 allies 5808 | -7/Garrison | Destroyed 7 combat bots 5839 | -7/Garrison | Garrison Relay disabled 5984 | -7/Garrison | Discovered new exit (range 13) 6003 | -7/Garrison | Entered Factory 6003 | -6/Factory | Evolved 2 slots: Power x1, Utility x1 6289 | -6/Factory | Build established: Scavenger-Gunner 6408 | -6/Factory | Sucked down chute 6408 | -6/Factory | Entered Waste 6408 | -6/Waste | The area was eerily silent 6458 | -6/Waste | A Compactor rumbled back to life 6458 | -6/Waste | Spotted C-40 Crusher 6464 | -6/Waste | Crushed by Compactor (1 part destroyed, 2 dropped) 6469 | -6/Waste | Crushed by Compactor (1 part destroyed, 1 dropped) 6512 | -6/Waste | Discovered new exit (range 10) 6534 | -6/Waste | Entered Factory 6547 | -6/Factory | Identified exit to DSF 6547 | -6/Factory | Entered DSF 6600 | -6/DSF | Additional patrols routed to DSF 6668 | -6/DSF | Lost 3 parts (1p1n1w) 6805 | -6/DSF | Discovered new exit (range 13) 6812 | -6/DSF | Entered Factory 6812 | -5/Factory | Evolved 2 slots: Propulsion x2 6832 | -5/Factory | Lost 5 parts (2p2n1u) 6935 | -5/Factory | Build established: Mutant 6975 | -5/Factory | Discovered new exit (range 10) 6979 | -5/Factory | Entered Extension 7066 | -5/Extension | Spotted B-75 Beast 7069 | -5/Extension | Spotted B-75 Beast 7123 | -5/Extension | Lost 4 parts (1p2n1w) 7124 | -5/Extension | Discovered new exit (range 16) 7124 | -5/Extension | Discovered new exit (range 15) 7185 | -5/Extension | Entered Cetus 7201 | -5/Cetus | Spotted Cetus Guard 7209 | -5/Cetus | Spotted Cetus Guard 7211 | -5/Cetus | Spotted Cetus Guard 7215 | -5/Cetus | Spotted Cetus Guard 7246 | -5/Cetus | Lost 4 parts (1n1u2w) 7402 | -5/Cetus | Core integrity fell below 50% 7410 | -5/Cetus | Discovered new exit (range 16) 7417 | -5/Cetus | Entered Archives 7424 | -5/Archives | Met Zhirov 7430 | -5/Archives | Reinforcements dispatched to Archives 7432 | -5/Archives | Unable to access archive contents 7439 | -5/Archives | Read partially decrypted archive contents 7443 | -5/Archives | Discovered new exit (range 13) 7449 | -5/Archives | Entered Hub_04(d) 7471 | -5/Hub_04(d) | Discovered new exit (range 16) 7483 | -5/Hub_04(d) | Discovered new exit (range 15) 7692 | -5/Hub_04(d) | Entered Factory 7692 | -4/Factory | Evolved 2 slots: Power x1, Utility x1 7696 | -4/Factory | Identified exit to DSF 7696 | -4/Factory | Entered DSF 7739 | -4/DSF | Additional patrols routed to DSF 7924 | -4/DSF | System corruption reached 10% 7960 | -4/DSF | Discovered new exit (range 14) 7992 | -4/DSF | Entered Research 7992 | -3/Research | Evolved 2 slots: Utility x2 8009 | -3/Research | Lost 8 parts (2p3n3u) 8615 | -3/Research | System corruption reached 10% 8630 | -3/Research | Lost 10 parts (3p2n2u3w) 8725 | -3/Research | Core integrity fell below 50% 8733 | -3/Research | Lost 4 parts (2n2w) 8736 | -3/Research | Core integrity fell below 20% 8756 | -3/Research | Destroyed by S-43 Plague with Heavy Machine Gun Last Messages --------------- 08687_ Imp. Antigrav System destroyed. 08687_ Slug penetrates Wall. 08690_ QI1USLGAY,B%GF8YZWNR#XETI/&PLKNNB6 08690_ Gamma Rifle destroyed. 08693_ Penetrated by Slug. 08699_ Linear Accelerator destroyed. 08702_ Penetrated by Slug. 08702_ Imp. Antigrav System destroyed. 08715_ System corrupted: Component data lost. 08715_ K-01 Serf cleans the Prototyping Station. 08726_ Knocked back. 08728_ Acquired 7 matter. 08739_ K-01 Serf cleans the Field Manipulator. 08740_ Connecting with Repair Station... 08740_ ALERT: Suspicious activity at Repair Station R001. Dispatching Investigation squad. 08745_ K-01 Serf cleans the Field Manipulator. 08748_ Acquired Unknown Device. 08749_ Identified Adv. Force Field. [Achievement: Achiever] Map ----- +----------------------------------------------------+ | ?????????? #?????????????????? | | ?????????? #?????????????????? | | ????????? #?????????????????? | | ????????? #?????????????????? | | ???????? #?????????????????? | | ???????? #?????????????????? | | ???????? #?+#+##???????????? | | ????????? """" """" """" #? #???????????? | | ?????????????" """" """" #? ###?????????? | | ?????????????" """" """" ## +?????????? | | ????????????"" """" """" #???????????? | | ???????????""" """" """" #???????????? | | ?????????? #???????????? | | ?????????? #???????????? | | ?????????? #######+##??? | | ?????????? "" "" ??? | | ?????????? ""R"" ?? | | ??????????? """" ??? | | ????????????? ############## ^ """ ""????? | | ????????????? ??############# """" ???????? | | ???????????????????# # """" ""?????? | | ???????????????????# ] # """ """????? | | ???????????????????# """ # ?? | | ???????????????????# """ + ?? | | ???????????????????# """ s# ?? | | ???????????????????# @ ss # #########??? | | ???????????????????+ s # #??????????? | | ???????????????????###############+####??????????? | | ?????????????????????????????????????????????????? | | ?????????????????????????????????????????????????? | | ?????????????????????????????????????????????????? | | ?????????????????????????????????????????????????? | | ?????????????????????????????????????????????????? | | ?????????????????????????????????????????????????? | | ?????????????????????????????????????????????????? | | ?????????????????????????????????????????????????? | | ?????????????????????????????????????????????????? | | ?????????????????????????????????????????????????? | | ?????????????????????????????????????????????????? | | ?????????????????????????????????????????????????? | | ?????????????????????????????????????????????????? | | ?????????????????????????????????????????????????? | | ?????????????????????????????????????????????????? | | ?????????????????????????????????????????????????? | | ?????????????????????????????????????????????????? | | ?????????????????????????????????????????????????? | | ?????????????????????????????????????????????????? | | ?????????????????????????????????????????????????? | | ?????????????????????????????????????????????????? | | ?????????????????????????????????????????????????? | +----------------------------------------------------+ Best States ------------- Heat Dissipation 56 Energy Generation 55 Energy Capacity 775 Matter Stores 350 Matter Capacity 450 Sight Range 16 Terrain Scan Density 10 ECM Strength 2 Jamming Range 14 Armor Coverage 1200 Evasion (%) 62 Core Analysis 6 Recoil Reduction 6 Defensive Hacking 12 Item Schematics ----------------- Lgt. Treads | -9/Materials | Scanalyzed Rocket Launcher | -9/Materials | Scanalyzed Shield Generator | -8/Materials | Scanalyzed Imp. Utility Shielding | -8/Materials | Scanalyzed Ion Cannon | -8/Materials | Scanalyzed Robot Schematics ------------------ None Fabricated ------------ Nothing Repaired ---------- Autogun | 26% | -8/Storage Lgt. Treads | 1% | -7/Factory Lgt. Treads | 14% | -7/Factory Lrg. Storage Unit | 2% | -7/Factory Alien Tech Used ----------------- None Achievements -------------- Achiever Quantum Hacking Significant Disruption Challenges ------------ None Game ------ Seed FactoryScatterProjector Manual? 0 Play Time 01:36:14 Cumulative 30.7 hours Start 2025.07.22 @ 09:11:51 End 2025.07.22 @ 10:53:28 Sessions 1 Manual Loads 0 Difficulty Rogue Special Mode None Game No. 79 Rogue 79 Adventurer 0 Explorer 0 Win Type - Total 0 Types 0/0/0/0/0/0/0/0/0/0 Lore% 26 Gallery% 32 Achievement% 25 Wizard Run 0 Options --------- Layout 1 ASCII 0 Keyboard 0 Movement Mouse Keybinds 0 Fullscreen 1 Font 24/Smallcaps Map View 50x35 Zoom Use 0% Tactical HUD 1 Map Filters NONE Filters NONE Steam 1 RUN: 0754af7c-eb45-4ee7-88b8-b89a5622f027